bitfinex/quotes_BTCUSD_20251224
["timestamp","ask_amount","ask_price","bid_price","bid_amount"]
[1766597176513,0.000549,87381.0,87376.0,0.01144479]
[1766597176514,0.00055,87380.0,87376.0,0.01144479]
[1766597176727,0.26105334,87387.0,87374.0,0.02301014]
[1766597176728,0.24961,87387.0,87379.0,0.06866635]
[1766597176968,0.24961,87387.0,87378.0,0.01144452]
[1766597177172,0.24961,87386.0,87377.0,0.06866775]
[1766597177305,0.26105348,87386.0,87377.0,0.06866775]
[1766597177501,0.24961,87386.0,87378.0,0.01144452]
[1766597178336,0.04576,87400.0,87385.0,0.01144361]
[1766597178546,0.24961,87395.0,87387.0,0.05721673]
[1766597178756,0.39320282,87400.0,87376.0,0.01144479]
[1766597178757,0.24961,87387.0,87376.0,0.01144479]
[1766597178962,0.26105361,87385.0,87374.0,8.509e-05]
[1766597179180,0.01144374,87384.0,87375.0,0.01144492]
[1766597179368,0.01144387,87383.0,87374.0,8.509e-05]
[1766597179574,0.05721897,87384.0,87374.0,8.509e-05]
[1766597179776,0.08014138,87386.0,87374.0,8.509e-05]
[1766597179972,0.01144361,87385.0,87376.0,0.01144479]
[1766597180195,0.08014138,87386.0,87377.0,0.01144465]
[1766597180396,0.02292348,87386.0,87377.0,0.01144465]
[1766597180736,0.01144387,87383.0,87374.0,0.01153014]
[1766597180869,0.0686617,87385.0,87375.0,0.05722447]
[1766597181329,0.0686617,87385.0,87375.0,0.0686694]
[1766597181490,0.0686617,87385.0,87375.0,0.01144492]
[1766597181749,0.011444,87382.0,87374.0,8.509e-05]
[1766597181897,0.24961,87375.0,87366.0,0.00979095]
[1766597182082,0.24961,87375.0,87369.0,0.0114457]
[1766597182306,0.24961,87375.0,87367.0,0.06867572]
[1766597182518,0.24961,87375.0,87368.0,0.01144583]
[1766597182736,0.24961,87375.0,87369.0,0.0114457]
[1766597182959,0.24961,87375.0,87368.0,0.01144583]
[1766597183196,0.24961,87375.0,87369.0,0.0114457]
[1766597183424,0.24961,87375.0,87369.0,0.06867408]
[1766597183643,0.24961,87375.0,87371.0,0.01144544]
[1766597183860,0.24961,87375.0,87370.0,0.06867318]
[1766597184068,0.24961,87375.0,87370.0,0.01144557]
[1766597184319,0.24961,87375.0,87369.0,0.06867408]
[1766597184526,0.24961,87375.0,87369.0,0.0114457]
[1766597185434,0.249061,87375.0,87370.0,0.01144557]
[1766597185649,0.249061,87375.0,87369.0,0.0114457]
[1766597185843,0.249061,87375.0,87371.0,0.01144544]
[1766597186043,0.249061,87375.0,87370.0,0.06867345]
[1766597186481,0.249061,87375.0,87371.0,0.01144544]
[1766597187179,0.24880562,87375.0,87372.0,0.01144531]
[1766597187353,0.24880562,87375.0,87371.0,0.01144544]
[1766597187518,0.24880562,87375.0,87372.0,0.06867132]
[1766597187957,0.24880562,87375.0,87372.0,0.01144531]
[1766597188416,0.24880562,87375.0,87372.0,0.06867178]
[1766597189048,0.24880562,87375.0,87371.0,0.06867258]
[1766597189270,0.23253449,87375.0,87372.0,0.01144531]
[1766597189811,0.01148,87376.0,87373.0,0.05722537]
[1766597189972,0.01148,87376.0,87373.0,0.06867055]
[1766597191343,0.01148,87376.0,87374.0,0.05722502]
[1766597191543,0.01148,87376.0,87373.0,0.01144518]
[1766597192387,0.01148,87376.0,87371.0,0.01144544]
[1766597192614,0.01148,87376.0,87370.0,0.06867287]
[1766597193359,0.01148,87376.0,87370.0,0.01144557]
[1766597193655,0.01148,87376.0,87366.0,0.0114461]
[1766597193656,0.000549,87370.0,87366.0,0.06867654]
[1766597193955,0.25545,87376.0,87367.0,0.06867571]
[1766597194154,0.25545,87376.0,87368.0,0.01144583]
[1766597194404,0.26689479,87376.0,87367.0,0.01144596]
[1766597194605,0.25545,87376.0,87368.0,0.01144583]
[1766597195296,0.25541492,87375.0,87365.0,0.06867701]
[1766597195500,0.25541492,87375.0,87366.0,0.0114461]
[1766597195686,0.24397,87375.0,87368.0,0.01144583]
[1766597196610,0.01148,87376.0,87368.0,0.068675]
[1766597196867,0.01148,87376.0,87369.0,0.0114457]
[1766597197436,0.01148,87376.0,87370.0,0.01144557]
[1766597197612,0.01148,87376.0,87371.0,0.01144544]
[1766597197979,0.01148,87376.0,87371.0,0.06867218]
[1766597198185,0.01148,87376.0,87368.0,0.01144583]
[1766597198313,0.01148,87376.0,87369.0,0.0114457]
[1766597198716,0.01148,87376.0,87370.0,0.01144557]
[1766597199311,0.01148,87376.0,87370.0,0.06867344]
[1766597199526,0.01148,87376.0,87369.0,0.06867423]
[1766597199736,0.01148,87376.0,87369.0,0.0114457]
[1766597199933,0.01148,87376.0,87370.0,0.01144557]
[1766597200165,0.01148,87376.0,87369.0,0.06867421]
[1766597200570,0.01148,87376.0,87370.0,0.01144557]
[1766597200776,0.01148,87376.0,87370.0,0.0686722]
[1766597200973,0.01148,87376.0,87370.0,0.01144557]
[1766597201173,0.01148,87376.0,87371.0,0.01144544]
[1766597201395,0.01148,87376.0,87370.0,0.06867339]
[1766597201594,0.01148,87376.0,87371.0,0.01144544]
[1766597201843,0.01144426,87380.0,87371.0,0.01144544]
[1766597202025,0.01148,87379.0,87372.0,0.01144531]
[1766597202306,0.22587,87389.0,87379.0,0.01144439]
[1766597202540,0.01148,87389.0,87382.0,0.05721997]
[1766597202770,0.01148,87392.0,87381.0,0.05722062]
[1766597202987,0.08013628,87392.0,87381.0,0.05722062]
[1766597203172,0.01144295,87390.0,87380.0,0.06866434]
[1766597203444,0.06865699,87391.0,87382.0,0.011444]
[1766597203664,0.01144282,87391.0,87382.0,0.011444]
[1766597203879,0.06865712,87391.0,87381.0,0.06866462]
[1766597204597,0.06865712,87391.0,87382.0,0.011444]
[1766597205204,0.08013628,87392.0,87383.0,0.01144387]
[1766597205623,0.01148,87392.0,87386.0,0.01144348]
[1766597205834,0.0801344,87395.0,87385.0,0.01144361]
[1766597206260,0.01144243,87394.0,87385.0,0.06866158]
[1766597206453,0.0229223,87395.0,87386.0,0.01144348]
[1766597206783,0.01148,87395.0,87387.0,0.01144334]
[1766597207098,0.01148,87395.0,87386.0,0.06866061]
[1766597208003,0.01144243,87394.0,87385.0,0.01144361]
[1766597208211,0.0229223,87395.0,87385.0,0.06866144]
[1766597208715,0.01144269,87392.0,87383.0,0.02292387]
[1766597208926,0.0686551,87394.0,87384.0,0.01144374]
[1766597209282,0.01144243,87394.0,87385.0,0.01144361]
[1766597209488,0.01144256,87393.0,87384.0,0.06866244]
[1766597210146,0.01144256,87393.0,87384.0,0.01144374]
[1766597210488,0.0686547,87394.0,87384.0,0.01144374]
[1766597211059,0.01144243,87394.0,87385.0,0.01144361]
[1766597211311,0.01144243,87394.0,87383.0,0.08014274]
[1766597211312,0.000549,87385.0,87383.0,0.01148]
[1766597211801,0.01144295,87390.0,87383.0,0.01148]
[1766597212038,0.01144413,87381.0,87368.0,0.01144583]
[1766597212198,0.01144413,87381.0,87373.0,0.01144518]
[1766597212199,0.00035453,87381.0,87373.0,0.01144518]
[1766597212419,0.00035453,87381.0,87374.0,0.01144505]
[1766597213265,0.00035453,87381.0,87375.0,0.01144492]
[1766597213811,0.00035453,87381.0,87374.0,0.01144505]
[1766597214340,0.00035453,87381.0,87378.0,0.01144452]
[1766597214469,4.53e-06,87381.0,87378.0,0.01144452]
[1766597214682,4.53e-06,87381.0,87374.0,0.06867003]
[1766597215026,4.53e-06,87381.0,87375.0,0.01144492]
[1766597215364,4.53e-06,87381.0,87377.0,0.01144465]
[1766597215566,4.53e-06,87381.0,87376.0,0.06866826]
[1766597216031,4.53e-06,87381.0,87377.0,0.01144465]
[1766597216434,4.53e-06,87381.0,87375.0,0.01144492]
[1766597217053,4.53e-06,87381.0,87375.0,0.06866921]
[1766597217223,4.53e-06,87381.0,87377.0,0.01144465]
[1766597217674,4.53e-06,87381.0,87377.0,0.06866776]
[1766597217906,4.53e-06,87381.0,87376.0,0.06866818]
[1766597218337,4.53e-06,87381.0,87375.0,0.01144492]
[1766597219141,4.53e-06,87381.0,87376.0,0.01144479]
[1766597219492,4.53e-06,87381.0,87375.0,0.06866935]
[1766597219907,4.53e-06,87381.0,87375.0,0.06866949]
[1766597220045,4.53e-06,87381.0,87376.0,0.01144479]
[1766597220244,4.53e-06,87381.0,87375.0,0.06866949]
[1766597220451,4.53e-06,87381.0,87374.0,0.06867016]
[1766597220850,4.53e-06,87381.0,87374.0,0.01144505]
[1766597221473,0.01144866,87381.0,87369.0,0.0114457]
[1766597221663,0.06867119,87373.0,87365.0,0.01148]
[1766597221865,0.26613465,87377.0,87373.0,0.000549]
[1766597221866,0.05722409,87376.0,87373.0,0.000549]
[1766597222148,0.06866953,87375.0,87365.0,0.07920679]
[1766597222323,0.06867092,87374.0,87365.0,0.02197602]
[1766597222569,0.01144518,87373.0,87365.0,0.01052979]
[1766597223295,0.01144492,87375.0,87365.0,0.06776041]
[1766597223738,0.06866888,87376.0,87365.0,0.06867685]
[1766597223937,0.01144505,87374.0,87366.0,0.01148]
[1766597224158,0.01144518,87373.0,87366.0,0.01148]
[1766597224557,0.06867054,87374.0,87365.0,0.01148]
[1766597224761,0.06867054,87374.0,87365.0,0.02292623]
[1766597225136,0.01144505,87374.0,87365.0,0.02292623]
[1766597225334,0.06867037,87374.0,87365.0,0.02292623]
[1766597225519,0.01144518,87373.0,87365.0,0.01148]
[1766597225716,0.01144557,87370.0,87360.0,0.06868074]
[1766597225929,0.0114457,87369.0,87361.0,0.01148]
[1766597226126,0.25469,87371.0,87363.0,0.01144649]
[1766597226331,0.25469,87371.0,87362.0,0.01144662]
[1766597226332,0.26613544,87371.0,87362.0,0.01144662]
[1766597227158,0.25469,87371.0,87363.0,0.01144649]
[1766597227365,0.25469,87371.0,87364.0,0.01144636]
[1766597227748,0.26613544,87371.0,87362.0,0.0686796]
[1766597228172,0.25469,87371.0,87363.0,0.01144649]
[1766597228999,0.25469,87371.0,87364.0,0.01144636]
[1766597229198,0.25469,87371.0,87363.0,0.01144649]
[1766597229536,0.01148,87374.0,87372.0,0.01144531]
[1766597229704,0.39366162,87420.0,87373.0,0.01148]
[1766597229705,0.05720988,87398.0,87373.0,0.01148]
[1766597229911,0.01156516,87398.0,87390.0,0.06865751]
[1766597230116,0.01156516,87398.0,87390.0,0.01144295]
[1766597230518,0.01156516,87398.0,87394.0,0.05721202]
[1766597230718,0.01156516,87398.0,87392.0,0.01144269]
[1766597230956,0.01156516,87398.0,87390.0,0.01144295]
[1766597231522,0.01156516,87398.0,87390.0,0.06865764]
[1766597233087,0.01156516,87398.0,87391.0,0.01144282]
[1766597234034,0.01156516,87398.0,87392.0,0.01144269]
[1766597234899,0.01156516,87398.0,87391.0,0.06865687]
[1766597235295,0.00408202,87398.0,87393.0,0.01144256]
[1766597235498,0.0458,87413.0,87404.0,0.00564415]
[1766597235674,0.00011,87409.0,87405.0,0.05711686]
[1766597235877,0.00011,87409.0,87405.0,0.05701988]
[1766597236285,0.00011,87409.0,87407.0,0.05720365]
[1766597236487,0.32332264,87422.0,87409.0,0.00011]
[1766597236488,0.02291942,87417.0,87409.0,0.00011]
[1766597236686,0.05719904,87415.0,87409.0,0.00011]
[1766597236905,0.01143968,87415.0,87405.0,0.06864583]
[1766597237255,0.01143968,87415.0,87405.0,0.01144099]
[1766597237465,0.01143981,87414.0,87405.0,0.06864579]
[1766597237635,0.01143981,87414.0,87405.0,0.01144099]
[1766597240332,0.06863842,87415.0,87405.0,0.01144099]
[1766597240773,0.01143994,87413.0,87404.0,0.01144112]
[1766597240933,0.01143994,87413.0,87404.0,0.0115182]
[1766597241731,0.01143981,87414.0,87405.0,0.01144099]
[1766597242002,0.01143994,87413.0,87404.0,0.06872361]
[1766597242225,0.01143981,87414.0,87405.0,0.01144099]
[1766597242972,0.06863939,87415.0,87405.0,0.01144099]
[1766597243236,0.01143876,87422.0,87412.0,0.01144007]
[1766597243465,0.01148,87420.0,87409.0,0.01144046]
[1766597243801,0.01148,87420.0,87411.0,0.0114402]
[1766597244224,0.02291902,87420.0,87410.0,0.01144033]
[1766597244422,0.01143916,87419.0,87410.0,0.01144033]
[1766597244806,0.06863501,87419.0,87409.0,0.01144046]
[1766597245240,0.00011,87423.0,87416.0,0.01143955]
[1766597245412,0.22875388,87431.0,87420.0,0.01143902]
[1766597245413,0.05718913,87430.0,87420.0,0.01143902]
[1766597245611,0.06862928,87427.0,87419.0,0.00055]
[1766597245815,0.01143785,87429.0,87419.0,0.01143916]
[1766597246167,0.02291772,87430.0,87421.0,0.01143889]
[1766597246374,0.01143798,87428.0,87419.0,0.01143916]
[1766597246581,0.06862789,87428.0,87418.0,0.01143929]
[1766597246782,0.01143824,87426.0,87417.0,0.06863591]
[1766597246980,0.01143811,87427.0,87418.0,0.01143929]
[1766597247404,0.01143798,87428.0,87419.0,0.01143916]
[1766597247931,0.01143811,87427.0,87418.0,0.01143929]
[1766597248134,0.01143811,87427.0,87417.0,0.01143942]
[1766597248277,0.01143811,87427.0,87418.0,0.01143929]
[1766597248462,0.01143811,87427.0,87417.0,0.06863648]
[1766597248678,0.01143785,87429.0,87419.0,0.01143916]
[1766597248864,0.01143798,87428.0,87420.0,0.01148]
[1766597249102,0.01143811,87427.0,87420.0,0.01148]
[1766597249301,0.06862744,87429.0,87420.0,0.02291902]
[1766597249913,0.01143785,87429.0,87420.0,0.02291902]
[1766597250095,0.06862714,87429.0,87420.0,0.01148]
[1766597250289,0.01131045,87427.0,87420.0,0.01148]
[1766597250869,0.01143798,87428.0,87420.0,0.01148]
[1766597251296,0.24018764,87432.0,87420.0,0.01148]
[1766597251297,0.00011,87450.0,87438.0,0.01143667]
[1766597251509,0.0114334,87463.0,87447.0,0.01143549]
[1766597251713,0.01148,87463.0,87459.0,0.005714]
[1766597251915,0.01148,87463.0,87459.0,0.005165]
[1766597252481,0.25907637,87461.0,87455.0,0.01143445]
[1766597252734,0.25907637,87461.0,87456.0,0.01143432]
[1766597253066,0.25907637,87461.0,87457.0,0.01143419]
[1766597253314,0.25907637,87461.0,87456.0,0.01143432]
[1766597253452,0.25907637,87461.0,87457.0,0.01143419]
[1766597253654,0.25907637,87461.0,87441.0,0.22872502]
[1766597253876,0.25886,87458.0,87451.0,0.01143497]
[1766597254078,0.25886,87458.0,87450.0,0.0114351]
[1766597254499,0.25886,87458.0,87451.0,0.01143497]
[1766597255060,0.25886,87458.0,87452.0,0.01143484]
[1766597255259,0.25886,87458.0,87456.0,0.05717157]
[1766597255524,0.25886,87458.0,87451.0,0.01143497]
[1766597255525,0.25886,87458.0,87454.0,0.01143458]
[1766597256331,0.25886,87458.0,87453.0,0.01143471]
[1766597256746,0.25886,87458.0,87452.0,0.01143484]
[1766597257085,0.25886,87458.0,87453.0,0.01143471]
[1766597257912,0.25886,87458.0,87454.0,0.01143458]
[1766597258734,0.258311,87458.0,87455.0,0.01143445]
[1766597259512,0.00021637,87461.0,87458.0,0.01143405]
[1766597259683,0.0002,87466.0,87462.0,0.01143353]
[1766597259855,0.0002,87466.0,87463.0,0.0114334]
[1766597259856,0.00027703,87466.0,87463.0,0.0114334]
[1766597260066,0.00027703,87466.0,87463.0,0.06860043]
[1766597260270,3e-08,87466.0,87464.0,0.05716637]
[1766597260474,0.0002,87474.0,87467.0,0.01143288]
[1766597260670,0.00055431,87474.0,87465.0,0.01148]
[1766597260875,0.27084627,87474.0,87465.0,0.02291314]
[1766597261078,0.01143209,87473.0,87465.0,0.01148]
[1766597261253,0.01143222,87472.0,87465.0,0.01148]
[1766597261580,0.27029222,87472.0,87465.0,0.011204]
[1766597261920,0.32745336,87472.0,87465.0,0.011204]
[1766597262121,0.32745349,87472.0,87465.0,0.011204]
[1766597262454,0.27029222,87472.0,87465.0,0.011204]
[1766597262962,0.25886,87472.0,87465.0,0.011204]
[1766597263156,0.27029222,87472.0,87465.0,0.011204]
[1766597263456,0.01143236,87471.0,87465.0,0.011204]
[1766597263642,0.25886,87472.0,87465.0,0.011204]
[1766597263846,0.25886,87472.0,87465.0,0.02263714]
[1766597264299,0.27029222,87472.0,87465.0,0.011204]
[1766597264515,0.25886,87472.0,87465.0,0.011204]
[1766597264754,0.27029222,87472.0,87465.0,0.011204]
[1766597264961,0.26351,87471.0,87465.0,0.011204]
[1766597265100,0.27494236,87471.0,87465.0,0.011204]
[1766597265298,0.01143249,87470.0,87465.0,0.011204]
[1766597265704,0.26351,87471.0,87465.0,0.011204]
[1766597266129,0.01143249,87470.0,87465.0,0.011204]
[1766597266334,0.26351,87471.0,87465.0,0.011204]
[1766597266609,0.27494236,87471.0,87465.0,0.011204]
[1766597267104,0.33210418,87471.0,87465.0,0.011204]
[1766597267528,0.01143262,87469.0,87465.0,0.011204]
[1766597267726,0.27494236,87471.0,87465.0,0.011204]
[1766597268351,0.25487,87471.0,87465.0,0.011204]
[1766597268613,0.06406846,87505.0,87474.0,0.05715984]
[1766597268790,0.01148,87491.0,87482.0,0.06858523]
[1766597268931,0.00027699,87486.0,87480.0,0.0685865]
[1766597269130,0.00027699,87486.0,87482.0,0.01143092]
[1766597269330,0.00055,87482.0,87473.0,0.01143209]
[1766597269534,0.00055,87482.0,87475.0,0.06859042]
[1766597269726,0.00055,87482.0,87473.0,0.06859235]
[1766597269727,0.00055,87482.0,87474.0,0.02291196]
[1766597269954,0.32066292,87485.0,87475.0,0.01143183]
[1766597270157,0.33209345,87485.0,87475.0,0.01143183]
[1766597270358,0.33209345,87485.0,87474.0,0.08007154]
[1766597270359,0.01143066,87484.0,87474.0,0.08007154]
[1766597270552,0.33209364,87485.0,87475.0,0.01143183]
[1766597270814,0.01143066,87484.0,87475.0,0.06859081]
[1766597271018,0.27494053,87485.0,87476.0,0.0114317]
[1766597271190,0.26351,87485.0,87476.0,0.0114317]
[1766597271419,0.27494053,87485.0,87476.0,0.0114317]
[1766597271593,0.01143066,87484.0,87475.0,0.06859097]
[1766597272540,0.27494053,87485.0,87475.0,0.06859097]
[1766597272820,0.26351,87482.0,87474.0,0.01148]
[1766597272963,0.26406,87474.0,87469.0,0.01148]
[1766597273162,0.26406,87474.0,87470.0,0.01148]
[1766597273585,0.26351,87474.0,87470.0,0.01148]
[1766597274148,0.26351,87474.0,87470.0,0.02291249]
[1766597274350,0.26351,87474.0,87471.0,0.01143236]
[1766597274525,0.262961,87474.0,87470.0,0.08007471]
[1766597274671,0.26351,87481.0,87474.0,0.01143196]
[1766597274896,0.01143053,87485.0,87475.0,0.01148]
[1766597275272,0.06858396,87484.0,87475.0,0.01148]
[1766597275548,0.06858396,87484.0,87475.0,0.02291183]
[1766597275766,0.01143079,87483.0,87475.0,0.01148]
[1766597275918,0.01143092,87482.0,87475.0,0.01148]
[1766597276098,0.068585,87483.0,87475.0,0.01148]
[1766597276302,0.01143092,87482.0,87475.0,0.01148]
[1766597277419,0.00027699,87486.0,87478.0,0.01143144]
[1766597277619,0.00027699,87486.0,87477.0,0.06858887]
[1766597277802,0.00027699,87486.0,87471.0,0.01143236]
[1766597277803,0.26351,87483.0,87471.0,0.01143236]
[1766597278007,0.264059,87477.0,87472.0,0.01148]
[1766597278264,0.06859082,87476.0,87463.0,0.0114334]
[1766597278420,0.06859082,87476.0,87466.0,0.05716471]
[1766597278421,0.26908,87475.0,87466.0,0.05716471]
[1766597278643,0.26908,87475.0,87467.0,0.01148]
[1766597278891,0.28051183,87475.0,87465.0,0.01143314]
[1766597279089,0.28051183,87475.0,87455.0,0.03431361]
[1766597279090,0.26908,87469.0,87460.0,0.01143379]
[1766597279289,0.26908,87469.0,87461.0,0.01148]
[1766597279649,0.26908,87469.0,87461.0,0.02291366]
[1766597282181,0.26908,87469.0,87461.0,0.08008164]
[1766597282350,0.26908,87469.0,87464.0,0.01143327]
[1766597282546,0.08007037,87476.0,87465.0,0.01143314]
[1766597282745,0.08007037,87476.0,87466.0,0.01148]
[1766597282746,0.05716107,87473.0,87466.0,0.01148]
[1766597282948,0.05715958,87475.0,87466.0,0.010931]
[1766597283152,0.05716038,87474.0,87466.0,0.010931]
[1766597283569,0.01143222,87472.0,87466.0,0.010931]
[1766597283776,0.06859358,87472.0,87466.0,0.010931]
[1766597283980,0.06859166,87475.0,87466.0,0.010931]
[1766597284175,0.05715984,87474.0,87466.0,0.010931]
[1766597284371,0.0685918,87474.0,87466.0,0.010931]
[1766597284615,0.01143196,87474.0,87466.0,0.010931]
[1766597284791,0.01143209,87473.0,87466.0,0.010931]
[1766597285270,0.01143196,87474.0,87466.0,0.010931]
[1766597285677,0.01143209,87473.0,87466.0,0.010931]
[1766597285875,0.01148,87476.0,87473.0,0.000549]
[1766597286192,0.26908,87480.0,87475.0,0.01143183]
[1766597286391,0.26908,87480.0,87474.0,0.06859127]
[1766597286592,0.26908,87480.0,87473.0,0.01143209]
[1766597286759,0.26908,87480.0,87474.0,0.01143196]
[1766597286965,0.26908,87480.0,87475.0,0.01143183]
[1766597287212,0.26908,87480.0,87475.0,0.06859095]
[1766597287435,0.26908,87480.0,87474.0,0.06859165]
[1766597287628,0.26908,87480.0,87474.0,0.01143196]
[1766597287833,0.26908,87480.0,87473.0,0.01143209]
[1766597287992,0.26908,87480.0,87474.0,0.01143196]
[1766597288329,0.26908,87480.0,87473.0,0.01143209]
[1766597288532,0.26908,87480.0,87472.0,0.01143222]
[1766597288910,0.26908,87480.0,87474.0,0.01143196]
[1766597289155,0.26908,87480.0,87471.0,0.02291236]
[1766597289156,0.00027699,87486.0,87480.0,0.000549]
[1766597289435,0.00027699,87486.0,87478.0,0.01148]
[1766597289800,0.01170739,87486.0,87478.0,0.01148]
[1766597290138,0.00027699,87486.0,87478.0,0.02291144]
[1766597290342,0.00027699,87486.0,87479.0,0.06858784]
[1766597291009,0.00027699,87486.0,87478.0,0.08006853]
[1766597291218,0.00027699,87486.0,87481.0,0.01143105]
[1766597291980,0.32622352,87499.0,87486.0,0.000276]
[1766597292147,0.32622352,87499.0,87488.0,0.06858071]
[1766597292148,0.01142883,87498.0,87488.0,0.06858071]
[1766597292350,0.2805087,87499.0,87489.0,0.06857987]
[1766597292549,0.26908,87499.0,87492.0,0.01142961]
[1766597292754,0.2805087,87499.0,87490.0,0.06857912]
[1766597292984,0.00025039,87497.0,87489.0,0.06857995]
[1766597293182,0.00025039,87497.0,87487.0,0.01148]
[1766597293183,0.06857614,87494.0,87487.0,0.01148]
[1766597293396,0.01142935,87494.0,87487.0,0.01148]
[1766597293563,0.01142961,87492.0,87487.0,0.01148]
[1766597293765,0.01142974,87491.0,87487.0,0.01148]
[1766597293962,0.01142987,87490.0,87487.0,0.01148]
[1766597294174,0.01142987,87490.0,87487.0,0.01093]
[1766597294545,0.06857934,87490.0,87487.0,0.01093]
[1766597294762,0.06857779,87492.0,87487.0,0.01093]
[1766597295168,0.06857779,87492.0,87487.0,0.01148]
[1766597295169,0.01143,87489.0,87487.0,0.01148]
[1766597295373,0.26908,87486.0,87483.0,0.01148]
[1766597295730,0.26908,87486.0,87476.0,0.0114317]
[1766597295731,0.2805104,87486.0,87476.0,0.0114317]
[1766597295848,0.26908,87483.0,87476.0,7.699e-05]
[1766597296048,0.07549912,87484.0,87470.0,0.01143249]
[1766597296049,0.26908,87479.0,87473.0,0.01148]
[1766597296866,0.26908,87479.0,87474.0,0.01143196]
[1766597297276,0.26908,87479.0,87473.0,0.08007258]
[1766597297658,0.26908,87479.0,87474.0,0.01143196]
[1766597298759,0.26908,87479.0,87474.0,0.06859165]
[1766597298952,0.26908,87479.0,87473.0,0.08007258]
[1766597299159,0.268531,87479.0,87475.0,0.01143183]
[1766597299327,0.268531,87479.0,87473.0,0.01148]
[1766597299530,0.268531,87479.0,87473.0,0.02291209]
[1766597299732,0.268531,87479.0,87474.0,0.01143196]
[1766597300304,0.268531,87479.0,87473.0,0.02291209]
[1766597300526,0.268531,87479.0,87473.0,0.01148]
[1766597301922,0.26908,87489.0,87478.0,0.01143144]
[1766597302138,0.26933039,87497.0,87488.0,0.00055]
[1766597302347,0.01148,87496.0,87488.0,0.06913079]
[1766597302799,0.01148,87496.0,87488.0,0.06858079]
[1766597303007,0.01148,87496.0,87488.0,0.01143013]
[1766597303155,0.08005474,87496.0,87486.0,0.08006239]
[1766597303717,0.01148,87496.0,87489.0,0.01143]
[1766597304135,0.01148,87496.0,87488.0,0.01143013]
[1766597304381,0.01148,87496.0,87490.0,0.01142987]
[1766597304584,0.01148,87496.0,87489.0,0.06857988]
[1766597304735,0.01148,87496.0,87489.0,0.01143]
[1766597305186,0.01148,87496.0,87489.0,0.06857984]
[1766597305548,0.01148,87496.0,87487.0,0.05715119]
[1766597305990,0.01148,87496.0,87489.0,0.01143]
[1766597306193,0.01148,87496.0,87486.0,0.41550053]
[1766597306399,0.06857552,87495.0,87486.0,0.01148]
[1766597306584,0.26908,87492.0,87486.0,0.01148]
[1766597306785,0.28050961,87492.0,87486.0,0.01148]
[1766597306981,0.26908,87492.0,87486.0,0.01148]
[1766597308291,0.29153,87491.0,87486.0,0.010931]
[1766597308651,0.30295974,87491.0,87486.0,0.010931]
[1766597308874,0.29153,87487.0,87475.0,0.01143183]
[1766597309086,0.29153,87481.0,87472.0,0.06859287]
[1766597309299,0.30296105,87481.0,87472.0,0.01143222]
[1766597309548,0.30296105,87481.0,87474.0,0.0685912]
[1766597309549,0.29153,87481.0,87474.0,0.0685912]
[1766597309720,0.39259013,87500.0,87478.0,0.01143144]
[1766597309721,0.01143026,87487.0,87478.0,0.01143144]
[1766597309869,0.36011129,87488.0,87479.0,0.01143131]
[1766597310100,0.30296013,87488.0,87479.0,0.01143131]
[1766597310275,0.01143026,87487.0,87477.0,0.01143157]
[1766597310496,0.01143053,87485.0,87475.0,0.06859044]
[1766597311193,0.06858375,87485.0,87475.0,0.01143183]
[1766597311580,0.06858375,87485.0,87475.0,0.068591]
[1766597311784,0.0229104,87486.0,87476.0,0.06859023]
[1766597312226,0.0229104,87486.0,87477.0,0.06858937]
[1766597312401,0.0229104,87486.0,87477.0,0.01143157]
[1766597312638,0.08006246,87486.0,87476.0,0.06859023]
[1766597312840,0.01143079,87483.0,87474.0,0.01143196]
[1766597313092,0.29153,87482.0,87473.0,0.01148]
[1766597313296,0.39259013,87510.0,87466.0,0.24009274]
[1766597313297,0.3029617,87476.0,87467.0,0.01143288]
[1766597313486,0.29153,87476.0,87468.0,0.01148]
[1766597313649,0.29153,87476.0,87468.0,0.02291275]
[1766597313857,0.3029617,87476.0,87468.0,0.01148]
[1766597314061,0.29153,87474.0,87466.0,0.06859754]
[1766597314370,0.01143222,87472.0,87467.0,0.01148]
[1766597314571,0.34869107,87473.0,87467.0,0.01148]
[1766597314794,0.34869107,87473.0,87460.0,0.40402392]
[1766597314795,0.30296209,87473.0,87464.0,0.01143327]
[1766597314970,0.30296209,87473.0,87465.0,0.01148]
[1766597314971,0.29153,87471.0,87465.0,0.01148]
[1766597315159,0.27293741,87471.0,87465.0,0.01148]
[1766597315352,0.27238841,87471.0,87466.0,0.01143301]
[1766597315710,0.01143131,87479.0,87468.0,0.01143275]
[1766597315711,0.0685892,87478.0,87468.0,0.01143275]
[1766597315838,0.3601192,87478.0,87469.0,0.01143262]
[1766597316042,0.3601192,87478.0,87468.0,0.01143275]
[1766597316043,0.29153,87478.0,87475.0,0.01143183]
[1766597316353,0.22860019,87489.0,87478.0,0.06858866]
[1766597316354,0.29153,87487.0,87478.0,0.06858866]
[1766597316550,0.30301,87487.0,87477.0,0.01143157]
[1766597316786,0.30301,87487.0,87477.0,0.06858893]
[1766597316787,0.0114304,87486.0,87477.0,0.06858893]
[1766597316999,0.37159178,87487.0,87478.0,0.01143144]
[1766597317194,0.30301,87487.0,87478.0,0.01143144]
[1766597317372,0.31444026,87487.0,87478.0,0.01143144]
[1766597318046,0.30301,87487.0,87478.0,0.01143144]
[1766597318521,0.01148,87487.0,87481.0,0.01143105]
[1766597318753,0.01148,87487.0,87480.0,0.01143118]
[1766597319023,0.01148,87487.0,87481.0,0.06858581]
[1766597319173,0.01148,87487.0,87482.0,0.01143092]
[1766597319520,0.01148,87487.0,87481.0,0.06858581]
[1766597319678,0.01148,87487.0,87482.0,0.01143092]
[1766597319881,0.01148,87487.0,87480.0,0.01143118]
[1766597320140,0.02291026,87487.0,87478.0,0.01143144]
[1766597320529,0.0114304,87486.0,87477.0,0.06858889]
[1766597321441,0.08006173,87487.0,87478.0,0.01143144]
[1766597321644,0.02291026,87487.0,87478.0,0.01143144]
[1766597324334,0.02291026,87487.0,87478.0,0.06858865]
[1766597324533,0.02291026,87487.0,87478.0,0.01143144]
[1766597325605,0.01148,87487.0,87479.0,0.01143131]
[1766597326269,0.02291026,87487.0,87478.0,0.01143144]
[1766597326978,0.02291026,87487.0,87478.0,0.06858863]
[1766597326979,0.01148,87487.0,87478.0,0.06858863]
[1766597327623,0.01148,87487.0,87479.0,0.01143131]
[1766597328319,0.06863186,87487.0,87477.0,0.01143157]
[1766597328536,0.0114304,87486.0,87477.0,0.01143157]
[1766597328669,0.0114304,87486.0,87476.0,0.0800691]
[1766597328670,0.01143092,87482.0,87476.0,0.01148]
[1766597328903,0.28537,87480.0,87476.0,0.01148]
[1766597329131,0.28537,87480.0,87472.0,0.02291222]
[1766597329340,0.01143144,87478.0,87472.0,0.01148]
[1766597329794,0.0685884,87479.0,87472.0,0.01148]